Cogmind - Beta 16.1 @@@ ROGUE MODE // 2026.03.05 @ 20:06:12 Player: SunShine214 Result: Destroyed self with Mini Grenade Launcher Performance ------------- Evolutions (1) 500 Regions Visited (3) 600 Robots Destroyed (81) 405 Value Destroyed (2060) 2060 Prototype IDs (5) 100 Alien Tech Used (0) 0 Bonus (87) 87 TOTAL SCORE: 3752 Bonus ------- High Alert Combat Kills 87 Cogmind --------- Core Integrity 0/400 Matter 20/300 Energy 85/100 System Corruption 21% Temperature Cool (0) Movement Core (400) Ox7 Location -9/Storage Parts ------- > --- POWER (1) -------- (None) > --- PROPULSION (2) --- (None) > --- UTILITY (4) ------ Large Storage Unit > --- WEAPON (2) ------- Mini Grenade Launcher Heavy Hammer > --- INVENTORY (15) --- Improved Flight Unit Improved Flight Unit Improved Targeting Computer Propulsion Shielding Improved EM Shotgun Improved EM Shotgun Advanced Beam Cannon Minigun Rocket Launcher Mining Laser Mace Peak State ------------ > --- POWER ------------ Heavy Ion Engine > --- PROPULSION ------- Light Treads Light Treads > --- UTILITY ---------- Large Storage Unit Sensor Array Signal Interpreter Light Armor Plating > --- WEAPON ----------- Advanced Beam Cannon Minigun > --- INVENTORY -------- Light Ion Engine Light Treads Improved Flight Unit Improved Flight Unit Core Shielding Propulsion Shielding Light Armor Plating EM Pulse Gun Improved EM Shotgun Minigun Grenade Launcher Grenade Launcher Mining Laser Mace [Rating: 17] Favorites ----------- Power Heavy Ion Engine Engine Heavy Ion Engine Propulsion Light Treads Treads Light Treads Flight Unit Improved Flight Unit Utility Sensor Array Device Sensor Array Storage Small Storage Unit Processor Signal Interpreter Protection Light Armor Plating Weapon EM Pulse Gun Energy Gun EM Pulse Gun Energy Cannon Advanced Beam Cannon Ballistic Gun Minigun Launcher Mini Grenade Launcher Special Weapon Mining Laser Impact Weapon Heavy Hammer Build | -11 -10 -9 -9 ------- Run | Yrd Mat Mat Sto Slots Evolved 2 | . . 2 . Power . | . . . . Propulsion . | . . . . Utility 2 | . . 2 . Weapon . | . . . . Parts Attached 41 | 7 2 22 10 Power 3 | 1 . 2 . Engine 3 | 1 . 2 . Core . | . . . . Reactor . | . . . . Propulsion 12 | 2 . 8 2 Treads 11 | 2 . 7 2 Leg . | . . . . Wheel . | . . . . Hover . | . . . . Flight 1 | . . 1 . Utility 13 | 2 1 7 3 Device 3 | 1 1 1 . Storage 3 | 1 . 2 . Processor 3 | . . 2 1 Hackware . | . . . . Protection 4 | . . 2 2 Artifact . | . . . . Weapon 13 | 2 1 5 5 Energy Gun 4 | 2 . 2 . Energy Cannon 1 | . . 1 . Ballistic Gun 2 | . . 2 . Ballistic Cannon . | . . . . Launcher 4 | . . . 4 Special Weapon 1 | . 1 . . Impact Weapon 1 | . . . 1 Slashing Weapon . | . . . . Piercing Weapon . | . . . . Special Melee Weapon . | . . . . Unidentified Prototypes 5 | . . 5 . Parts Lost 13 | . . . 13 Power 1 | . . . 1 Propulsion 3 | . . . 3 Utility 6 | . . . 6 Weapon 3 | . . . 3 Highest Loss Streak 9 | . . . 9 To Critical Strikes . | . . . . Average Backups 10 | 2 6 11 14 Power . | . 1 . . Propulsion 2 | . 1 3 2 Utility 1 | . . 1 4 Weapon 5 | 1 2 6 7 Tool/Special . | . . . . Unused Backups 13 | . 3 4 6 Power 1 | . . 1 . Propulsion 5 | . 2 2 1 Utility 2 | . . 1 1 Weapon 5 | . 1 . 4 Tool/Special . | . . . . Average Slot Usage (%) 98 | . 100 99 93 Engine 11 | . 14 11 10 Treads 23 | . 28 22 20 Device 11 | . 14 11 7 Storage 12 | . 14 13 11 Processor 9 | . . 13 11 Protection 5 | . . 6 10 Energy Gun 8 | . 27 1 . Energy Cannon 5 | . . 7 9 Ballistic Gun 7 | . . 12 2 Launcher 1 | . . . 8 Peak Build Rating 17 | 7 7 17 17 Average Rating 12 | 5 7 15 15 On Entrance 7 | . 7 7 17 Avg Prop Armor Cover (%) . | . . . . Naked Turns . | . . . . Heaviest Build 39 | 15 15 39 39 Greatest Support 40 | 40 40 40 40 Greatest Overweight (x) 1 | . . . 1 Average Overweight (x) . | . . . . Largest Inventory Capacity 15 | 8 8 15 15 Average Capacity 11 | 7 8 11 15 Most Carried 15 | 3 8 15 15 Average Carried 10 | 2 6 11 14 Final Capacity 15 | 8 8 15 15 Final Carried 15 | 3 8 15 11 Class Distribution -------------------- 86% | Mutant 10% | Skirmisher Dominant Class ---------------- Mutant | -10/Materials Mutant | -9/Materials Mutant | -9/Storage Resources | -11 -10 -9 -9 ----------- Run | Yrd Mat Mat Sto Matter Collected 1152 | 237 54 672 189 Remotely . | . . . . Salvage Created 2439 | 167 319 1242 711 Parts 164 | 10 20 82 52 Haulers Intercepted 5 | . . 2 3 Recyclers Shooed . | . . . . Parts Field Recycled . | . . . . Retrieved Matter . | . . . . Parts Self-Destructed . | . . . . Prevented . | . . . . Parts Restored . | . . . . Kills | -11 -10 -9 -9 ------- Run | Yrd Mat Mat Sto Combat Hostiles Destroyed 51 | . 5 23 23 Guns 18 | . 4 14 . Cannons 11 | . . 9 2 AOE 21 | . . . 21 Classes Destroyed 14 | 3 4 3 4 Worker 6 | 1 1 1 3 Builder 2 | . . . 2 Tunneler 2 | 2 . . . Hauler 5 | . . 2 3 Recycler 3 | 1 1 1 . Mechanic 2 | . . . 2 Operator 2 | . 1 1 . Watcher 8 | . 3 4 1 Swarmer 6 | . 3 3 . Grunt 30 | . 2 12 16 Brawler 4 | . . 2 2 Duelist 1 | . . . 1 Protector 1 | . . . 1 Sentry 9 | . . 6 3 Best Kill Streak 12 | 2 4 6 12 Combat Bots Only 9 | . 3 5 9 Max Kills in Single Turn 3 | 2 2 1 3 Gunslinging . | . . . . Exploded 2 | . . . 2 Melee . | . . . . Uniques/NPCs Destroyed . | . . . . Combat | -11 -10 -9 -9 -------- Run | Yrd Mat Mat Sto Hostile Shots Fired 202 | . 20 77 105 Missed 51 | . 7 20 24 Hits 151 | . 13 57 81 Melee 9 | . . 1 8 Projectile 142 | . 13 56 73 Critical Strikes 6 | . . 4 2 Damage Taken 2306 | . 156 718 1432 Core 443 | . 25 94 324 Absorbed by Shields . | . . . . Core Remaining (%) 95 | 100 90 . . Volleys Fired 131 | 3 22 74 32 Largest 2 | 2 2 2 2 Hottest 168 | 80 140 168 98 Shots Fired 252 | 6 44 148 54 Gun 148 | 6 42 99 1 Cannon 69 | . . 47 22 Launcher 31 | . . . 31 Special 4 | . 2 2 . Kinetic 100 | . . 99 1 Thermal 73 | . 2 49 22 Explosive 31 | . . . 31 Electromagnetic 48 | 6 42 . . Robot Hit Streak 10 | 2 7 10 5 Robot Miss Streak 5 | 1 5 5 3 Penetration Max . | . . . . Secondary Targets 1 | . . 1 . Max Gunslinging Chain 1 | . . 1 . Shots Hit Robots 140 | 3 22 86 29 Core Hits 126 | 4 12 40 70 Critical Kills . | . . . . Critical Parts Destroyed 2 | . . 1 1 Critical Strikes 2 | . . 1 1 Destroy 1 | . . 1 . Smash 1 | . . . 1 Melee Attacks 4 | . . . 4 Impact 4 | . . . 4 Slashing . | . . . . Piercing . | . . . . Sneak Attacks . | . . . . Combat Hostiles . | . . . . Follow-up Attacks . | . . . . Damage Inflicted 5605 | 73 606 1645 3281 Guns 1370 | 57 334 979 . Cannons 822 | . . 639 183 Explosions 3352 | . 272 . 3080 Melee 18 | . . . 18 Ramming 43 | 16 . 27 . Kinetic 979 | . . 979 . Thermal 1094 | . 272 639 183 Explosive 3080 | . . . 3080 Electromagnetic 391 | 57 334 . . Impact 18 | . . . 18 Slashing . | . . . . Piercing . | . . . . Highest Corruption 21 | . . . 21 Average Corruption 14 | . . . 14 Corruption Purged . | . . . . Corruption Blocked . | . . . . Effects 1 | . . . 1 Data Loss (major) 1 | . . . 1 Overload Shots . | . . . . Overflow Damage 84 | . 16 10 58 Projectiles 10 | . . 10 . Explosions 56 | . 16 . 40 Melee 18 | . . . 18 Knockbacks 1 | 1 . . . Impact 1 | 1 . . . Kinetic . | . . . . Secondary . | . . . . Self-Inflicted Damage 288 | . 38 . 250 Shots 8 | . 1 . 7 Rammed 8 | 3 . 5 . Targets Rammed 9 | 4 . 5 . Kicked . | . . . . Crushed 1 | 1 . . . Highest Temperature 412 | 36 135 304 412 Average Temperature 84 | 18 46 74 136 Received Heat Transfer 837 | . 9 339 489 Effects 6 | . . 3 3 Energy Bleed 1 | . . . 1 Interference 5 | . . 3 2 Siege Activations . | . . . . Martial Activations . | . . . . Shielding Activations . | . . . . Robots Disrupted . | . . . . Combat Hostiles . | . . . . Robots Corrupted 1 | . 1 . . Combat Hostiles 1 | . 1 . . Parts Fried 1 | . 1 . . Impact Corruptions 1 | . . . 1 Robots Melted . | . . . . Combat Hostiles . | . . . . Parts Melted 1 | . . 1 . Heat Transferred 1860 | . 400 1147 313 Parts Sabotaged . | . . . . Parts Stolen . | . . . . Parts Stripped . | . . . . Power Chain Reactions 4 | . 4 . . Alert | -11 -10 -9 -9 ------- Run | Yrd Mat Mat Sto Maximum Alert Level 2 | . . 1 2 Low Security (%) 59 | 100 100 46 20 Level 1 36 | . . 53 56 Level 2 3 | . . . 22 Level 3 . | . . . . Level 4 . | . . . . Level 5 . | . . . . High Security . | . . . . Max Security . | . . . . Peak Influence 603 | 10 100 350 603 Initial 132 | . . . 132 Average 155 | 1 25 185 317 Influence Increases 1706 | 20 199 718 769 Destroy 0b10 Robot/C 1000 | . 100 460 440 Destroy 0b10 Robot/NC 155 | 20 30 45 60 Destroy Leader 256 | . 26 142 88 Successful Hack 29 | . 21 8 . Disable Machine 75 | . 15 15 45 Destroy Structure 146 | . 7 3 136 Lose Combat Pursuer 45 | . . 45 . Influence Decreases 1157 | 20 199 404 534 Entered New Map 182 | . . . 182 Time Decay 845 | 20 199 404 222 Lost Part 130 | . . . 130 Squads Dispatched 7 | . . 2 5 Investigation . | . . . . Extermination . | . . . . Reinforcement 4 | . . 2 2 Assault 3 | . . . 3 Garrison . | . . . . Intercept . | . . . . Searches Triggered . | . . . . Construction Impeded 2 | . . . 2 Haulers Reinforced . | . . . . Active Scanning Responses . | . . . . Cargo Convoy Interrupts . | . . . . Stealth | -11 -10 -9 -9 --------- Run | Yrd Mat Mat Sto Distress Signals 5 | . . 4 1 Communications Jammed . | . . . . Distress Signals . | . . . . Times Spotted 87 | . 10 37 40 Peak Tracking Total 8 | . 3 5 8 Tactical Retreats 3 | . . 3 . Traps | -11 -10 -9 -9 ------- Run | Yrd Mat Mat Sto Traps Triggered 3 | . . . 3 Indirectly . | . . . . Trap Hack Attempts . | . . . . Triggered . | . . . . Disarmed 3 | . 3 . . Reprogrammed . | . . . . Reused . | . . . . Traps Extracted . | . . . . Installed . | . . . . Triggered . | . . . . Machines | -11 -10 -9 -9 ---------- Run | Yrd Mat Mat Sto Machines Disabled 5 | . 1 1 3 Max in Single Turn 1 | . 1 1 1 Machines Repaired . | . . . . Machines Dismantled . | . . . . Machines Sabotaged . | . . . . Overloaded Fab Kills . | . . . . Hacking | -11 -10 -9 -9 --------- Run | Yrd Mat Mat Sto Machines Accessed 9 | . 6 3 . Terminals 8 | . 6 2 . Fabricators . | . . . . Repair Stations . | . . . . Recycling Units . | . . . . Scanalyzers 1 | . . 1 . Garrison Access . | . . . . Total Hacks 21 | . 14 7 . Successful 8 | . 5 3 . Failed 13 | . 9 4 . Catastrophic 2 | . 2 . . Database Lockouts . | . . . . Manual 7 | . 2 5 . Terminals 19 | . 14 5 . Fabricators . | . . . . Repair Stations . | . . . . Recycling Units . | . . . . Scanalyzers 2 | . . 2 . Garrison Access . | . . . . Terminal Hacks 6 | . 5 1 . Robot Analysis 1 | . 1 . . Branch Access Points 2 | . 1 1 . Disarm Traps 1 | . 1 . . Maintenance Status 1 | . 1 . . Hauler Manifests 1 | . 1 . . Fabricator Hacks . | . . . . Repair Station Hacks . | . . . . Recycling Unit Hacks . | . . . . Scanalyzer 2 | . . 2 . Retrieve Study 2 | . . 2 . Garrison Access Hacks . | . . . . Unauthorized Hacks . | . . . . Terminals . | . . . . Fabricators . | . . . . Repair Stations . | . . . . Recycling Units . | . . . . Scanalyzers . | . . . . Garrison Access . | . . . . Data Cores Recovered 1 | . 1 . . Used . | . . . . Hacking Detections 6 | . 4 2 . Full Trace Events 1 | . 1 . . Feedback Events . | . . . . Feedback Blocked . | . . . . Robot Schematics Acquired . | . . . . Robots Built . | . . . . Authchips . | . . . . Time . | . . . . Total Robot Build Rating . | . . . . Part Schematics Acquired . | . . . . Parts Built . | . . . . Authchips . | . . . . Time . | . . . . Total Part Build Rating . | . . . . Part Studies Acquired 2 | . . 2 . Parts Repaired . | . . . . Time . | . . . . Parts Recycled . | . . . . Recycled Matter . | . . . . Retrieved Matter . | . . . . Retrieved Components . | . . . . Parts Scanalyzed . | . . . . Part Schematics Acquired . | . . . . Parts Damaged . | . . . . Bothacking | -11 -10 -9 -9 ------------ Run | Yrd Mat Mat Sto Used RIF Installer . | . . . . Robots Hacked . | . . . . Non-combat . | . . . . Combat . | . . . . Robot Hacks Applied . | . . . . Relay Couplers Released . | . . . . Fabnet Peak Effective % . | . . . . Robots Rewired . | . . . . Allies Hacked . | . . . . Hacks Repelled . | . . . . Allies | -11 -10 -9 -9 -------- Run | Yrd Mat Mat Sto Total Allies . | . . . . Largest Group . | . . . . Highest-Rated Group . | . . . . Highest-Rated Ally . | . . . . Total Orders . | . . . . Ally Attacks . | . . . . Total Damage . | . . . . Kills . | . . . . Allies Corrupted . | . . . . Allies Melted . | . . . . Intel | -11 -10 -9 -9 ------- Run | Yrd Mat Mat Sto Active Infowar (turns) 2448 | 105 673 1340 330 Sensors 2213 | . 543 1340 330 Seismic 235 | 105 130 . . T.N.C. 258 | . . 258 . Robot Analysis Total 1 | . 1 . . Derelict Logs Recovered . | . . . . Drone Launches . | . . . . Drone Recoveries . | . . . . Exploration | -11 -10 -9 -9 ------------- Run | Yrd Mat Mat Sto Turns Passed 2659 | 180 673 1340 466 Spaces Moved 1192 | 96 264 622 210 Core 1 | 1 . . . Treads 1191 | 95 264 622 210 Legs . | . . . . Wheels . | . . . . Hover . | . . . . Flight . | . . . . Fastest Speed 50 | 50 160 160 160 Average Speed 160 | 158 160 160 160 Slowest Speed 200 | 160 160 160 200 Overloaded Moves . | . . . . Propulsion Burnouts . | . . . . Robots Hopped . | . . . . Potential Cave-ins . | . . . . Cave-ins Triggered . | . . . . Exploration Rate (%) 38 | 4 73 47 31 Regions Visited 3 Branch Regions 1 Pre-discovered Areas . | . . . . Known Exits Taken 1 | . . 1 . Unknown Exits Taken 2 | 1 1 . . Scrap Searched . | . . . . Spaces Dug . | . . . . Terrain Destroyed 175 | . 6 . 169 Melee . | . . . . Projectile 3 | . . . 3 AOE 172 | . 6 . 166 Terrain Rammed . | . . . . Walls Destroyed . | . . . . Machines Disabled . | . . . . Actions | -11 -10 -9 -9 --------- Run | Yrd Mat Mat Sto Total 1695 | 112 469 838 276 Wait 247 | . 170 74 3 Move 1189 | 95 263 621 210 Hop . | . . . . Pick Up 29 | 3 8 14 4 Fast Attach 17 | 7 . 2 8 Attach 8 | . . 1 7 Detach . | . . . . Swap 35 | . 3 27 5 Drop 26 | . 3 20 3 Fire 131 | 3 22 74 32 Melee 4 | . . . 4 Ram . | . . . . Kick . | . . . . Crush 9 | 4 . 5 . Escape Stasis . | . . . . Rewire . | . . . . Trap . | . . . . Miscellaneous . | . . . . Route ------- -11/Scrapyard -10/Materials (discovered 4 exits: *Mat x2 / *Min x2) -9/Materials (discovered 4 exits: [*Mat] / *Min x2 / *Sto) -9/Storage History --------- Turn | Location | Event 7 | -11/Scrapyard | Discovered new exit (range 15) 181 | -11/Scrapyard | Entered Materials 328 | -10/Materials | Discovered new exit (range 5) 337 | -10/Materials | Build established: Mutant 474 | -10/Materials | Discovered new exit (range 3) 562 | -10/Materials | Discovered new exit (range 13) 757 | -10/Materials | Identified exit to Mines 779 | -10/Materials | Discovered new exit (range 16) 854 | -10/Materials | Entered another Materials area 854 | -9/Materials | Evolved 2 slots: Utility x2 1629 | -9/Materials | Discovered new exit (range 16) 1700 | -9/Materials | Discovered new exit (range 12) 1880 | -9/Materials | Identified exit to Mines 1880 | -9/Materials | Identified exit to Storage 2194 | -9/Materials | Entered Storage 2420 | -9/Storage | Lost 3 parts (1u2w) 2594 | -9/Storage | First assault squad dispatched 2623 | -9/Storage | Core integrity fell below 50% 2645 | -9/Storage | System corruption reached 10% 2653 | -9/Storage | Core integrity fell below 20% 2660 | -9/Storage | Destroyed self with Mini Grenade Launcher Last Messages --------------- dispatching reinforcements to local area. 02653_ The unstable cave ceiling collapses. 02654_ Mni. Grenade Launcher destroyed. 02654_ Destroyed Mni. Grenade Launcher. 02655_ U-05 Engineer lays Concrete. 02655_ Imp. Targeting Computer destroyed. 02655_ Signal Interpreter destroyed. 02655_ System corrupted by crushing effect (+4). 02656_ U-05 Engineer lays Concrete. 02656_ B-36 Bruiser suffers critical hit (Smash). 02656_ Destroyed Lgt. Treads. 02656_ B-36 Bruiser system corrupted by crushing effect. 02657_ U-05 Engineer lays Concrete. 02658_ U-05 Engineer builds a Wall. 02658_ U-05 Engineer lays Concrete. 02660_ Lgt. Treads+ destroyed. 02660_ Destroyed Lgt. Treads+. Map ----- +----------------------------------------------------+ | ?????????????????????????????????????????????????? | | ?????????????????????????????????????????????????? | | ?????????????????????????????????????????????????? | | ????????????###################################### | | ???????????+ | | ???????????# | | ???????????# !! | | ???????????# ! """ """ | | ????????????## ########### """ """ ## | | ??????????????????????#### """ """ #? | | ??????????????????????# #? | | ?????????????????????## # / #? | | ???????????????##????# !* ? | | ???????????????# ########[ # #### ############## | | ???????????????# ##u######## #?# #?? | | ???????????????# # # #?# #?? | | ???????????????# ! # # #?# #?? | | ???????????????# """" # # ### ### | | ???????????????# """ # # / | | ???????????????# """" # # ###%! | | ???????????????# """" = # a =# ##=* == | | ?????????????### #uu! # ## # | | ?????????## ## # [ * # # !% ! | | ?????????# # ##+#### #######+## | | ?????????# =%== == r | | ?????????# T % % g*mb@ # | | ?????????# a =g b [ # ### | | ?????????# % # ############### ###?? | | ?????????## ##### #???#### ##[ #####???? | | ??????????# # ??#] ##??????#######???????? | | ??????????# ?##????#]]]" #?????????????????????? | | ??????????# ????????#####T##?????????????????????? | | ??????????/?????????????###??????????????????????? | | ????????? ???????????????????????????????????????? | | ???????? ????????????????????????????????????????? | | ??????? ?????????????????????????????????????????? | | ?????????????????????????????????????????????????? | | ?????????????????????????????????????????????????? | | ?????????????????????????????????????????????????? | | ?????????????????????????????????????????????????? | | ?????????????????????????????????????????????????? | | ?????????????????????????????????????????????????? | | ?????????????????????????????????????????????????? | | ?????????????????????????????????????????????????? | | ?????????????????????????????????????????????????? | | ?????????????????????????????????????????????????? | | ?????????????????????????????????????????????????? | | ?????????????????????????????????????????????????? | | ?????????????????????????????????????????????????? | | ?????????????????????????????????????????????????? | +----------------------------------------------------+ Best States ------------- Heat Dissipation 28 Energy Generation 14 Energy Capacity 280 Matter Stores 300 Matter Capacity 300 Sight Range 16 Robot Scan Range 14 Terrain Scan Density 10 Armor Coverage 150 Evasion (%) 40 Targeting Accuracy 6 Recoil Reduction 2 Item Schematics ----------------- None Robot Schematics ------------------ None Fabricated ------------ Nothing Repaired ---------- Nothing Studied --------- Flight Unit | -9/Materials | Hacked Lgt. Treads | -9/Materials | Hacked Alien Tech Used ----------------- None Achievements -------------- None Challenges ------------ None Game ------ Seed SmartAblativeNanosword Manual? 0 Play Time 00:24:51 Cumulative 99.9 hours Start 2026.03.04 @ 12:58:21 End 2026.03.05 @ 20:06:12 Sessions 2 Manual Loads 0 Difficulty Rogue Special Mode None Game No. 154 Rogue 154 Adventurer 0 Explorer 0 Win Type - Total 1 Types 1/0/0/0/0/0/0/0/0/0 Lore% 45 Gallery% 50 Achievement% 36 Wizard Run 0 Options --------- Layout 1 ASCII 0 Keyboard 1 Movement Arrows Keybinds 0 Fullscreen 1 Font 24/Smallcaps Map View 50x35 Zoom Use 0% Tactical HUD 1 Map Filters NONE Filters NONE Steam 1 RUN: 696a297f-e183-4a81-a78f-b40591daf87f